bitfinex/quotes_BTCUSD_20220202
["timestamp","ask_amount","ask_price","bid_price","bid_amount"]
[1643814884329,0.48452778,37633.0,37622.0,0.05]
[1643814884531,0.00045865,37625.0,37622.0,0.1]
[1643814884727,0.00045865,37625.0,37620.0,0.1]
[1643814884930,0.26174275,37624.0,37618.0,0.8081]
[1643814885130,0.26174275,37624.0,37618.0,0.05]
[1643814885401,0.26174275,37624.0,37615.0,0.05]
[1643814885607,0.21019124,37629.0,37618.0,0.22200873]
[1643814885801,0.00045841,37623.0,37618.0,0.22200873]
[1643814886200,0.06691841,37623.0,37614.0,7.2e-05]
[1643814886600,0.24561634,37621.0,37613.0,0.12124791]
[1643814886801,0.24561634,37621.0,37613.0,0.07124791]
[1643814887102,0.00045841,37620.0,37615.0,0.25088538]
[1643814887903,0.02180956,37626.0,37615.0,0.30088538]
[1643814888301,0.00045841,37619.0,37615.0,0.30088538]
[1643814888505,0.00045841,37619.0,37615.0,0.25088538]
[1643814889003,0.00045841,37619.0,37612.0,7.2e-05]
[1643814889225,0.31030999,37622.0,37611.0,7.2e-05]
[1643814889425,0.00055963,37619.0,37611.0,7.2e-05]
[1643814889629,0.00055963,37619.0,37611.0,0.11304779]
[1643814889824,0.00055963,37619.0,37611.0,7.2e-05]
[1643814890425,0.13292,37625.0,37611.0,7.2e-05]
[1643814890826,0.13292,37625.0,37619.0,0.20504351]
[1643814891126,0.13292,37625.0,37611.0,7.2e-05]
[1643814891328,0.23235482,37623.0,37611.0,7.2e-05]
[1643814891527,0.066456,37624.0,37612.0,0.0845468]
[1643814891730,0.066456,37624.0,37614.0,0.066454]
[1643814891931,0.1,37627.0,37611.0,7.2e-05]
[1643814891932,0.51274838,37623.0,37611.0,7.2e-05]
[1643814892131,0.51274838,37623.0,37610.0,0.7581]
[1643814892132,0.0489,37622.0,37610.0,0.7581]
[1643814892431,0.0489,37622.0,37609.0,7.2e-05]
[1643814892432,0.10384753,37620.0,37609.0,7.2e-05]
[1643814892629,0.28477081,37617.0,37608.0,0.00017379]
[1643814892881,0.132981,37613.0,37608.0,7.2e-05]
[1643814893083,0.0489,37612.0,37608.0,0.00040951]
[1643814893291,0.0489,37612.0,37608.0,0.00033751]
[1643814893983,0.0486,37612.0,37603.0,0.17625365]
[1643814894181,0.49775147,37611.0,37608.0,0.00030038]
[1643814894380,0.0489,37610.0,37608.0,0.00030038]
[1643814894583,0.066494,37609.0,37608.0,0.00030038]
[1643814894783,0.52471618,37609.0,37608.0,0.00030038]
[1643814895182,0.55559515,37609.0,37604.0,7.2e-05]
[1643814895385,0.1,37608.0,37607.0,0.00030039]
[1643814895584,0.92114444,37608.0,37607.0,0.00030039]
[1643814895788,0.4588115,37608.0,37607.0,0.00030039]
[1643814896385,0.4588115,37608.0,37602.0,7.2e-05]
[1643814896626,0.066505,37607.0,37606.0,0.0003004]
[1643814896829,0.0489,37607.0,37606.0,0.07537098]
[1643814897031,0.0489,37607.0,37606.0,0.0003004]
[1643814897226,0.066491,37611.0,37606.0,0.9003004]
[1643814897428,0.0309482,37614.0,37606.0,0.9003004]
[1643814897627,0.03039922,37614.0,37602.0,7.2e-05]
[1643814897830,0.03039922,37614.0,37607.0,8.098e-05]
[1643814897831,0.0489,37613.0,37607.0,8.098e-05]
[1643814898031,0.55702644,37612.0,37607.0,8.098e-05]
[1643814898227,0.1489,37611.0,37607.0,8.098e-05]
[1643814898433,0.0489,37610.0,37607.0,8.098e-05]
[1643814898829,0.066497,37608.0,37602.0,7.2e-05]
[1643814899030,0.1,37611.0,37607.0,0.50124437]
[1643814899429,0.066489,37612.0,37607.0,0.50124437]
[1643814899629,0.0489,37611.0,37607.0,0.40008098]
[1643814899830,0.0489,37611.0,37608.0,0.28351659]
[1643814900132,0.0489,37611.0,37607.0,0.67361434]
[1643814900391,0.0489,37611.0,37607.0,0.40008098]
[1643814900591,0.0489,37611.0,37610.0,0.3]
[1643814901194,0.0489,37611.0,37604.0,0.29701606]
[1643814901390,0.46193399,37611.0,37608.0,0.00031923]
[1643814902192,0.1,37610.0,37608.0,0.00031923]
[1643814902492,0.52095437,37609.0,37605.0,7.2e-05]
[1643814902691,0.1,37608.0,37605.0,7.2e-05]
[1643814902891,0.46006809,37607.0,37605.0,7.2e-05]
[1643814903095,0.41409016,37606.0,37601.0,0.001072]
[1643814903291,0.0489,37605.0,37601.0,0.001072]
[1643814903499,0.1489,37605.0,37603.0,0.21530684]
[1643814903693,0.0489,37605.0,37603.0,0.21530684]
[1643814904144,0.0489,37605.0,37597.0,0.09383305]
[1643814904337,0.0489,37605.0,37594.0,0.05]
[1643814904538,0.0489,37605.0,37591.0,0.23297]
[1643814904738,0.0489,37605.0,37602.0,0.29224151]
[1643814905536,0.0489,37605.0,37601.0,0.20885195]
[1643814906141,0.0489,37605.0,37601.0,0.20919037]
[1643814906338,0.0002,37610.0,37602.0,0.9]
[1643814906643,0.0002,37610.0,37609.0,0.23065314]
[1643814908381,0.0002,37610.0,37609.0,1.10882079]
[1643814908584,0.01930465,37622.0,37621.0,0.85]
[1643814908784,0.01930465,37622.0,37621.0,0.92886877]
[1643814909180,0.01930465,37622.0,37621.0,0.85]
[1643814909381,0.132915,37624.0,37621.0,0.44499406]
[1643814909681,0.398297,37624.0,37621.0,0.44499406]
[1643814909882,0.00052952,37623.0,37621.0,0.44499406]
[1643814910485,0.43407512,37623.0,37621.0,0.44499406]
[1643814910885,0.45,37622.0,37612.0,0.7422]
[1643814911086,0.13295,37620.0,37612.0,0.7422]
[1643814911289,0.13295,37620.0,37610.0,0.0204405]
[1643814911290,0.4660085,37618.0,37610.0,0.04074346]
[1643814911486,0.25588836,37611.0,37610.0,0.02030296]
[1643814911732,0.7498956,37611.0,37610.0,0.02030296]
[1643814912133,0.132994,37609.0,37602.0,0.010626]
[1643814912432,0.85827874,37609.0,37608.0,0.00033925]
[1643814912630,0.09571086,37608.0,37601.0,0.00135724]
[1643814912830,0.0665,37606.0,37601.0,0.00135724]
[1643814913032,0.32966602,37605.0,37601.0,0.00135724]
[1643814913229,0.32966602,37605.0,37594.0,0.3188544]
[1643814913230,0.1,37604.0,37594.0,0.3188544]
[1643814913434,0.23138781,37598.0,37594.0,0.3188544]
[1643814913631,0.22288781,37598.0,37594.0,0.3188544]
[1643814913834,0.21862781,37598.0,37594.0,0.60092752]
[1643814914029,0.21862781,37598.0,37594.0,0.3138544]
[1643814914231,0.21646781,37598.0,37594.0,0.3138544]
[1643814914431,0.115403,37599.0,37594.0,0.3138544]
[1643814914632,0.40596919,37598.0,37594.0,9.036e-05]
[1643814914831,0.40531817,37598.0,37594.0,9.036e-05]
[1643814915032,0.41077731,37598.0,37594.0,9.036e-05]
[1643814915233,0.114323,37599.0,37594.0,9.036e-05]
[1643814915479,0.114323,37599.0,37597.0,0.08480885]
[1643814915684,0.04782,37599.0,37598.0,0.2603907]
[1643814915880,0.04782,37599.0,37593.0,0.28203465]
[1643814915881,0.47247384,37599.0,37593.0,0.28203465]
[1643814916279,0.04782,37599.0,37593.0,0.28203465]
[1643814916681,0.133003,37601.0,37593.0,0.33203465]
[1643814916888,0.06631822,37604.0,37595.0,0.05]
[1643814917083,0.1,37608.0,37607.0,0.6]
[1643814917281,0.72290746,37612.0,37607.0,0.6]
[1643814917282,0.47738472,37611.0,37607.0,0.6]
[1643814917482,0.132949,37611.0,37608.0,0.8]
[1643814917981,0.066474,37611.0,37608.0,0.8]
[1643814918182,0.45708176,37619.0,37608.0,0.8]
[1643814918381,0.27970586,37606.0,37603.0,0.05]
[1643814918583,0.1,37604.0,37592.0,0.0489]
[1643814918785,0.1,37593.0,37592.0,0.6489]
[1643814918985,0.27970586,37606.0,37593.0,0.9]
[1643814918986,0.45708176,37605.0,37593.0,0.9]
[1643814919235,0.05,37618.0,37598.0,0.061479]
[1643814919236,0.6374393,37616.0,37598.0,0.061479]
[1643814919436,0.1,37605.0,37600.0,0.23174716]
[1643814919636,0.05,37605.0,37600.0,0.23174716]
[1643814919836,0.1,37612.0,37600.0,0.23174716]
[1643814920037,0.31087767,37604.0,37600.0,0.23174716]
[1643814920239,0.40146564,37603.0,37598.0,7.2e-05]
[1643814920440,0.1,37602.0,37598.0,7.2e-05]
[1643814920838,0.4254902,37603.0,37595.0,0.066561]
[1643814921243,0.44654696,37603.0,37597.0,0.22437749]
[1643814921438,0.02105676,37603.0,37597.0,0.22437749]
[1643814921642,0.02105676,37603.0,37598.0,0.066486]
[1643814921842,0.00045991,37602.0,37598.0,0.066486]
[1643814922040,0.00045991,37602.0,37598.0,0.116558]
[1643814922240,0.05045991,37602.0,37598.0,0.116558]
[1643814922439,0.00045991,37602.0,37598.0,0.116486]
[1643814922891,0.02105676,37603.0,37602.0,0.54350671]
[1643814923290,0.02105676,37603.0,37602.0,0.24350671]
[1643814923490,0.07105676,37603.0,37598.0,0.127185]
[1643814923688,0.07105676,37603.0,37598.0,0.116558]
[1643814923889,0.02105676,37603.0,37602.0,1.01932367]
[1643814924090,0.02112416,37607.0,37602.0,1.01932367]
[1643814924295,0.02112416,37607.0,37602.0,1.06932367]
[1643814924296,0.07112416,37607.0,37602.0,1.06932367]
[1643814924591,0.02112416,37607.0,37602.0,1.06932367]
[1643814924788,0.02112416,37607.0,37602.0,0.72599981]
[1643814924991,0.3684405,37627.0,37604.0,0.9]
[1643814925194,0.3684405,37627.0,37621.0,0.08357119]
[1643814925195,0.009,37625.0,37621.0,0.08357119]
[1643814925395,0.79738,37624.0,37606.0,1.79002416]
[1643814925592,0.066455,37621.0,37607.0,0.351326]
[1643814925794,0.37188058,37626.0,37608.0,0.1]
[1643814925993,0.1,37627.0,37618.0,0.2732947]
[1643814926192,0.1,37627.0,37618.0,0.3732947]
[1643814926395,0.132929,37628.0,37618.0,0.3732947]
[1643814926641,0.232929,37628.0,37625.0,0.10015359]
[1643814927231,0.232929,37628.0,37621.0,0.066447]
[1643814928032,0.27382101,37623.0,37621.0,0.066447]
[1643814928231,0.132929,37628.0,37621.0,0.15847846]
[1643814928435,0.1,37627.0,37621.0,0.15847846]
[1643814928637,0.1,37627.0,37625.0,0.26106844]
[1643814928840,0.1,37627.0,37621.0,0.20847846]
[1643814929232,0.40653044,37627.0,37621.0,0.19847846]
[1643814929633,0.40653044,37627.0,37621.0,0.056447]
[1643814930035,0.37297844,37627.0,37621.0,0.056447]
[1643814930500,0.00055999,37626.0,37621.0,0.10295581]
[1643814930705,0.00055999,37626.0,37623.0,0.08348357]
[1643814930999,0.00055999,37626.0,37625.0,1.16953418]
[1643814931202,2.546224,37637.0,37625.0,1.251326]
[1643814931400,0.30550613,37633.0,37626.0,0.29099983]
[1643814931600,0.45011864,37632.0,37626.0,0.05]
[1643814931801,0.30550613,37633.0,37629.0,0.132842]
[1643814931802,0.30050613,37633.0,37629.0,0.132842]
[1643814932198,0.30050613,37633.0,37629.0,0.182842]
[1643814932798,0.30106637,37633.0,37629.0,0.182842]
[1643814933197,0.30087623,37633.0,37629.0,0.182842]
[1643814933400,0.30087623,37633.0,37630.0,0.09454664]
[1643814933401,0.00056024,37633.0,37630.0,0.09454664]
[1643814933600,0.066424,37640.0,37630.0,0.09454664]
[1643814933801,0.1,37638.0,37632.0,0.28414449]
[1643814933997,0.49873439,37638.0,37632.0,0.05]
[1643814934232,0.00056024,37633.0,37632.0,0.116426]
[1643814934735,0.00056024,37633.0,37632.0,1.367752]
[1643814934932,0.50050878,37640.0,37636.0,0.36103812]
[1643814935132,0.1,37640.0,37636.0,0.08356503]
[1643814935332,0.31575569,37641.0,37636.0,0.19998403]
[1643814935532,0.39454934,37640.0,37636.0,0.116419]
[1643814935731,0.46097134,37640.0,37636.0,0.05]
[1643814935931,0.46432538,37640.0,37632.0,0.132833]
[1643814936231,0.3045292,37638.0,37632.0,0.132833]
[1643814936430,0.3045292,37638.0,37632.0,0.41139416]
[1643814936630,0.3045292,37638.0,37632.0,0.132833]
[1643814936831,0.06698222,37640.0,37633.0,0.0464929]
[1643814937034,0.00056022,37640.0,37634.0,0.417742]
[1643814937242,0.31575569,37641.0,37635.0,0.90144464]
[1643814937434,0.01,37649.0,37637.0,0.9]
[1643814937638,0.0001,37649.0,37648.0,1.10664272]
[1643814937897,0.1,37660.0,37658.0,0.10114819]
[1643814938393,0.49767248,37668.0,37658.0,0.15114819]
[1643814938594,0.49767248,37668.0,37664.0,0.24506872]
[1643814938899,0.05,37667.0,37664.0,0.32146503]
[1643814939094,0.05,37666.0,37661.0,0.04646363]
[1643814939294,0.00017248,37667.0,37661.0,0.04646363]
[1643814939495,0.00017248,37667.0,37663.0,0.9]
[1643814939799,0.00017248,37667.0,37664.0,0.401326]
[1643814939993,0.02184617,37669.0,37666.0,0.04645026]
[1643814940394,0.02184617,37669.0,37661.0,0.38423223]
[1643814940395,0.28651238,37668.0,37661.0,0.38423223]
[1643814940593,0.28651238,37668.0,37661.0,0.119458]
[1643814940594,0.05,37664.0,37661.0,0.119458]
[1643814940795,0.05,37664.0,37653.0,0.059746]
[1643814940796,0.05,37663.0,37653.0,0.059746]
[1643814941194,0.28668486,37668.0,37653.0,0.059746]
[1643814941195,0.00017248,37667.0,37653.0,0.059746]
[1643814941394,0.05,37662.0,37653.0,0.059746]
[1643814941645,0.00017248,37667.0,37652.0,0.7812]
[1643814941646,0.05,37656.0,37652.0,0.7812]
[1643814941840,0.05,37653.0,37641.0,0.13941412]
[1643814942040,0.19322191,37666.0,37641.0,0.13941412]
[1643814942041,0.05,37648.0,37641.0,0.13941412]
[1643814942637,0.28680962,37648.0,37641.0,0.13941412]
[1643814942836,0.28680962,37648.0,37640.0,0.04648741]
[1643814942837,0.2460489,37647.0,37640.0,0.04648741]
[1643814943038,0.05,37643.0,37635.0,0.90573636]
[1643814943240,0.5489,37643.0,37635.0,0.90573636]
[1643814943440,0.5489,37643.0,37632.0,0.02051657]
[1643814943441,0.5,37642.0,37632.0,0.02051657]
[1643814943644,0.23938757,37635.0,37632.0,0.02051657]
[1643814943841,0.35598829,37646.0,37632.0,0.02051657]
[1643814943842,0.0489,37634.0,37632.0,0.02051657]
[1643814944040,0.00046117,37646.0,37633.0,1.00006867]
[1643814944241,0.0489,37645.0,37639.0,0.09252668]
[1643814944640,0.00046117,37641.0,37639.0,0.09252668]
[1643814944846,0.0989,37640.0,37639.0,0.09252668]
[1643814945041,0.0989,37640.0,37636.0,0.36596146]
[1643814945241,0.0489,37640.0,37636.0,0.1]
[1643814945488,0.309052,37637.0,37636.0,0.1]
[1643814946084,0.0489,37637.0,37636.0,0.73484869]
[1643814946684,0.06642,37647.0,37637.0,0.9]
[1643814946894,0.14182,37654.0,37646.0,0.07687308]
[1643814947088,0.23715173,37652.0,37649.0,0.04647542]
[1643814947286,0.23715173,37652.0,37646.0,0.05]
[1643814947685,0.23715173,37652.0,37645.0,0.25159127]
[1643814947887,0.4515076,37656.0,37645.0,0.30159127]
[1643814948086,0.42,37657.0,37645.0,0.30159127]
[1643814948391,0.4515076,37656.0,37649.0,0.03983578]
[1643814948585,0.4515076,37656.0,37646.0,0.1]
[1643814948785,0.24522738,37653.0,37646.0,0.1]
[1643814949259,0.24522738,37653.0,37649.0,0.10322223]
[1643814949460,0.24522738,37653.0,37647.0,0.05]
[1643814949461,0.1,37650.0,37647.0,0.05]
[1643814949661,0.39630071,37649.0,37647.0,0.05]
[1643814949859,0.39630071,37649.0,37644.0,0.05]
[1643814950066,0.1,37650.0,37643.0,0.08984197]
[1643814950364,0.24522738,37653.0,37644.0,0.059758]
[1643814950765,0.24522738,37653.0,37640.0,0.1]
[1643814950766,0.05,37642.0,37640.0,0.1]
[1643814950960,0.05,37642.0,37641.0,0.351326]
[1643814951361,0.05,37642.0,37641.0,0.451326]
[1643814951567,0.05,37642.0,37641.0,0.44881843]
[1643814951765,0.44641614,37652.0,37641.0,0.44881843]
[1643814951766,0.49641614,37652.0,37641.0,0.44881843]
[1643814951959,0.00046075,37643.0,37642.0,1.251326]
[1643814952161,0.00046075,37643.0,37642.0,1.34671964]
[1643814952360,0.00046075,37643.0,37642.0,1.250912]
[1643814952989,0.27853966,37649.0,37642.0,1.250912]
[1643814953187,0.27853966,37649.0,37643.0,1.22624781]
[1643814953188,0.00046075,37644.0,37643.0,1.22624781]
[1643814953391,0.00046075,37644.0,37643.0,1.250912]
[1643814953588,0.00046075,37644.0,37643.0,1.34072803]
[1643814953989,0.00046075,37644.0,37643.0,1.250912]
[1643814954192,0.27853966,37649.0,37643.0,1.250912]
[1643814954390,0.00046075,37645.0,37643.0,0.9]
[1643814954590,0.00046075,37645.0,37644.0,0.350912]
[1643814954893,0.00046075,37645.0,37630.0,0.2509]
[1643814955098,0.066416,37642.0,37630.0,0.2509]
[1643814955293,0.06642,37653.0,37630.0,0.001]
[1643814955294,0.0489,37641.0,37630.0,0.001]
[1643814955491,0.0489,37641.0,37635.0,0.29098288]
[1643814955492,0.32699356,37641.0,37635.0,0.29098288]
[1643814955694,0.0489,37641.0,37635.0,0.29098288]
[1643814956094,0.44468838,37640.0,37633.0,0.02157187]
[1643814956397,0.05,37638.0,37633.0,0.02157187]
[1643814956655,0.0489,37637.0,37633.0,0.02157187]
[1643814956853,0.23794784,37634.0,37630.0,0.001]
[1643814957053,0.0489,37633.0,37630.0,0.001]
[1643814957853,0.0489,37633.0,37631.0,0.350912]
[1643814958052,0.0489,37633.0,37630.0,0.001]
[1643814958252,0.0489,37633.0,37632.0,0.77334664]
[1643814958653,0.0489,37633.0,37630.0,0.001]
[1643814960388,0.326403,37637.0,37631.0,0.350912]
[1643814960389,0.05,37637.0,37631.0,0.350912]
[1643814960588,0.5475,37638.0,37630.0,0.001]
[1643814960789,0.89065918,37638.0,37630.0,0.001]
[1643814960994,0.01875247,37642.0,37635.0,0.37728257]
[1643814961189,0.01875247,37642.0,37637.0,0.33498856]
[1643814961388,0.01819124,37642.0,37637.0,0.33498856]
[1643814961594,0.2419,37655.0,37642.0,0.8]
[1643814961789,0.44265196,37655.0,37642.0,0.8]
[1643814961992,1.245,37664.0,37642.0,0.8]
[1643814961993,0.009,37662.0,37656.0,0.30886795]
[1643814962193,0.42,37664.0,37656.0,0.30886795]
[1643814962393,0.21951419,37670.0,37661.0,0.32161888]
[1643814962587,0.21951419,37670.0,37658.0,1.12044801]
[1643814962588,0.42,37664.0,37658.0,1.12044801]
[1643814962796,0.00056129,37660.0,37659.0,0.350912]
[1643814963192,0.0758,37673.0,37660.0,0.9]
[1643814963390,0.22868,37673.0,37663.0,0.29570661]
[1643814963591,0.14273627,37679.0,37664.0,0.7]
[1643814963592,0.29711279,37679.0,37664.0,0.7]
[1643814963791,0.29711279,37679.0,37670.0,0.08375065]
[1643814963792,0.39903279,37679.0,37670.0,0.08375065]
[1643814963992,0.39903279,37679.0,37665.0,0.44265196]
[1643814963993,0.05,37676.0,37665.0,0.44265196]
[1643814964238,0.10192,37675.0,37673.0,0.20773712]
[1643814964636,0.10192,37675.0,37665.0,0.76076885]
[1643814964836,0.10192,37675.0,37665.0,0.28655937]
[1643814965037,0.29711279,37679.0,37666.0,0.09610575]
[1643814965038,0.14903279,37679.0,37666.0,0.09610575]
[1643814965239,0.05,37679.0,37671.0,0.23861691]
[1643814965443,0.07168204,37679.0,37671.0,0.23861691]
[1643814965640,0.02168204,37679.0,37677.0,0.22244721]
[1643814966341,0.02168204,37679.0,37678.0,1.63036362]
[1643814966540,0.02168204,37679.0,37678.0,1.53294134]
[1643814966742,0.02168204,37679.0,37678.0,0.63294134]
[1643814966941,0.02168204,37679.0,37673.0,0.00030874]
[1643814967341,0.02168204,37679.0,37669.0,0.44169808]
[1643814967542,0.02168204,37679.0,37673.0,0.00030874]
[1643814967745,0.00055126,37678.0,37673.0,0.00030874]
[1643814968020,0.05055126,37678.0,37673.0,0.00030874]
[1643814968612,0.05,37678.0,37671.0,0.07656442]
[1643814968814,0.27924824,37677.0,37673.0,0.00027612]
[1643814969013,0.32978972,37677.0,37673.0,0.00027612]
[1643814969214,0.05054148,37677.0,37673.0,0.00027612]
[1643814969414,0.00054148,37677.0,37673.0,0.00027612]
[1643814969814,0.066356,37679.0,37669.0,0.07500708]
[1643814970016,0.066356,37679.0,37673.0,0.00027612]
[1643814970017,0.00054148,37677.0,37673.0,0.00027612]
[1643814970215,0.00054148,37677.0,37675.0,0.07375896]
[1643814970416,0.00054148,37677.0,37673.0,0.45354248]
[1643814970621,0.00054148,37677.0,37673.0,0.00027612]
[1643814970816,0.00054148,37677.0,37674.0,0.32404246]
[1643814971015,0.01814509,37680.0,37674.0,0.32404246]
[1643814971214,0.01814509,37680.0,37674.0,0.37404246]
[1643814971843,0.01814509,37680.0,37674.0,0.27404246]
[1643814972044,0.01814509,37680.0,37674.0,0.73752833]
[1643814972246,0.418,37685.0,37675.0,0.450912]
[1643814972247,0.468,37685.0,37675.0,0.450912]
[1643814972448,0.468,37685.0,37679.0,0.22604814]
[1643814972749,0.468,37685.0,37673.0,8.504e-05]
[1643814972750,0.05,37684.0,37673.0,8.504e-05]
[1643814972949,0.47510753,37683.0,37673.0,8.504e-05]
[1643814973248,0.05,37684.0,37673.0,8.504e-05]
[1643814973445,0.06982043,37684.0,37669.0,0.05]
[1643814973647,0.27704927,37674.0,37673.0,8.504e-05]
[1643814974048,0.32704927,37674.0,37673.0,8.504e-05]
[1643814974352,1.32594927,37674.0,37673.0,8.504e-05]
[1643814974546,1.32594927,37674.0,37657.0,1.4848]
[1643814974547,1.86764735,37674.0,37657.0,1.4848]
[1643814974748,0.066389,37671.0,37650.0,0.7485]
[1643814974949,0.05,37666.0,37648.0,0.7732]
[1643814975149,0.26304636,37663.0,37658.0,0.2538063]
[1643814975408,0.0489,37662.0,37658.0,0.2538063]
[1643814975601,0.0489,37662.0,37661.0,0.54404957]
[1643814975805,0.0989,37662.0,37661.0,0.09404957]
[1643814976201,0.0489,37662.0,37661.0,0.09404957]
[1643814976402,0.22715806,37664.0,37658.0,0.25411141]
[1643814976801,0.70997111,37664.0,37658.0,0.00030511]
[1643814977002,0.70997111,37664.0,37648.0,0.7732]
[1643814977003,0.05,37659.0,37648.0,0.7732]
[1643814977204,0.0989,37658.0,37649.0,0.1]
[1643814977403,0.0989,37658.0,37649.0,0.36734026]
[1643814977404,0.23409087,37656.0,37649.0,0.36734026]
[1643814977602,0.0489,37655.0,37649.0,0.08766832]
[1643814977802,0.22354741,37654.0,37649.0,0.08766832]
[1643814978002,0.22354741,37654.0,37648.0,0.002]
[1643814978003,0.0489,37653.0,37648.0,0.002]
[1643814978202,0.0989,37653.0,37648.0,0.002]
[1643814978407,0.0489,37653.0,37648.0,0.002]
[1643814979241,0.0489,37653.0,37650.0,0.27257441]
[1643814979434,0.0489,37653.0,37652.0,0.5875645]
[1643814979836,0.001,37658.0,37652.0,0.5875645]
[1643814980036,0.001,37658.0,37652.0,0.7375645]
[1643814980236,0.001,37658.0,37653.0,0.1]
[1643814980437,0.001,37658.0,37657.0,1.00386308]
[1643814980639,0.001,37658.0,37657.0,1.41882999]
[1643814980837,0.001,37658.0,37657.0,1.56882999]
[1643814981042,0.001,37658.0,37657.0,1.91974199]
[1643814981241,0.18216606,37677.0,37659.0,0.9]
[1643814981242,0.00051806,37677.0,37659.0,0.9]
[1643814981443,0.00051806,37677.0,37663.0,0.05]
[1643814981641,0.05,37674.0,37660.0,0.53775074]
[1643814981840,0.05,37672.0,37660.0,0.15]
[1643814982041,0.05,37674.0,37670.0,0.35870842]
[1643814982242,0.05,37674.0,37669.0,0.26901435]
[1643814982442,0.05,37672.0,37668.0,0.00030264]
[1643814982645,0.27587252,37677.0,37668.0,0.00030264]
[1643814982885,0.05051822,37677.0,37672.0,0.09695985]
[1643814983088,0.05,37680.0,37672.0,0.09695985]
[1643814983288,0.00051806,37677.0,37672.0,0.14695985]
[1643814983692,0.00051806,37677.0,37674.0,0.29145285]
[1643814983888,0.00051806,37677.0,37675.0,0.27431764]
[1643814984093,0.00051806,37677.0,37676.0,1.250912]
[1643814984289,0.44053004,37684.0,37673.0,0.24803922]
[1643814984489,0.44053004,37684.0,37673.0,0.29834117]
[1643814984490,0.0005085,37678.0,37673.0,0.29834117]
[1643814984690,0.0005085,37678.0,37673.0,0.00030195]
[1643814985289,0.05,37676.0,37673.0,0.00030195]
[1643814985592,0.05,37669.0,37661.0,0.05]
[1643814985892,0.05,37669.0,37664.0,0.24413908]
[1643814986294,0.04964631,37666.0,37659.0,0.79933]
[1643814986494,0.44053004,37668.0,37659.0,0.06953]
[1643814986752,0.04964631,37665.0,37659.0,0.06953]
[1643814986950,0.0489,37664.0,37659.0,0.06953]
[1643814987348,0.0489,37664.0,37659.0,0.33836422]
[1643814987547,0.04964631,37663.0,37659.0,0.33836422]
[1643814987746,0.0489,37664.0,37659.0,0.33836422]
[1643814987949,0.0489,37664.0,37659.0,0.33336422]
[1643814988353,0.0489,37664.0,37660.0,0.1]
[1643814988547,0.0489,37664.0,37659.0,0.38336422]
[1643814988748,0.0489,37664.0,37660.0,0.1]
[1643814988953,0.0489,37664.0,37663.0,0.62380519]
[1643814989451,0.01853727,37668.0,37664.0,0.9]
[1643814989649,0.01853727,37668.0,37666.0,0.54713977]
[1643814989852,0.00853727,37668.0,37667.0,1.27084958]
[1643814990049,0.00853727,37668.0,37667.0,0.37084958]
[1643814990248,0.00853727,37668.0,37667.0,0.02993758]
[1643814990488,0.05818358,37668.0,37667.0,0.02993758]
[1643814990694,0.00853727,37668.0,37667.0,0.02993758]
[1643814990887,0.05818358,37668.0,37667.0,0.02993758]
[1643814991090,0.33689167,37668.0,37667.0,0.02993758]
[1643814991388,0.05818358,37668.0,37667.0,0.02993758]
[1643814992189,0.00853727,37668.0,37667.0,0.52993758]
[1643814992588,0.00853727,37668.0,37667.0,0.88084958]
[1643814993387,0.05818358,37668.0,37667.0,0.02993758]
[1643814994238,0.26616244,37668.0,37667.0,0.02993758]
[1643814994634,0.05818358,37668.0,37667.0,0.02993758]
[1643814995635,0.30183397,37668.0,37667.0,0.02993758]
[1643814995835,0.05818358,37668.0,37667.0,0.02993758]
[1643814996235,0.05818358,37668.0,37667.0,0.32993758]
[1643814996438,0.04964631,37668.0,37667.0,0.3]
[1643814997038,0.04964631,37668.0,37666.0,0.00034553]
[1643814997438,0.5489,37667.0,37656.0,0.0218353]
[1643814997644,0.04964631,37657.0,37656.0,0.0218353]
[1643814997902,0.35514997,37657.0,37656.0,0.0218353]
[1643814998092,0.40514997,37657.0,37656.0,0.04241238]
[1643814998290,0.40514997,37657.0,37656.0,0.02057708]
[1643814999897,0.45514997,37657.0,37656.0,0.02057708]
[1643815000096,1.00514997,37657.0,37656.0,0.02057708]
[1643815000296,1.00514997,37657.0,37655.0,0.00034477]
[1643815000497,1.20855017,37657.0,37655.0,0.00034477]
[1643815000696,0.04964631,37649.0,37648.0,0.002]
[1643815000897,0.34854631,37649.0,37648.0,0.002]
[1643815001309,0.34854631,37649.0,37635.0,0.002]
[1643815001310,0.84964631,37646.0,37635.0,0.002]
[1643815001504,0.04964631,37640.0,37635.0,0.002]
[1643815001741,1.38544982,37645.0,37635.0,0.002]
[1643815001742,0.04964631,37636.0,37635.0,0.002]
[1643815002146,0.09854631,37636.0,37635.0,0.002]
[1643815003342,0.44854631,37636.0,37633.0,0.001]
[1643815003544,0.93552787,37636.0,37633.0,0.001]
[1643815003742,0.93552787,37636.0,37634.0,0.00034065]
[1643815003947,0.39854631,37636.0,37634.0,0.00034065]
[1643815004143,0.42405312,37637.0,37635.0,0.54897104]
[1643815004144,0.29117712,37637.0,37635.0,0.54897104]
[1643815004342,0.29117712,37637.0,37635.0,0.45]
[1643815004343,0.34117712,37637.0,37635.0,0.45]
[1643815004541,0.05,37637.0,37636.0,0.34758122]
[1643815004749,0.05,37639.0,37636.0,0.39758122]
[1643815004944,0.05,37639.0,37637.0,0.350912]
[1643815005145,0.115317,37649.0,37642.0,0.37496321]
[1643815005390,0.115317,37649.0,37635.0,0.66252718]
[1643815005391,0.0489,37649.0,37635.0,0.66252718]
[1643815005794,2.38425574,37654.0,37641.0,0.05]
[1643815005990,2.38425574,37654.0,37642.0,0.20711428]
[1643815006196,0.066402,37659.0,37642.0,0.20711428]
[1643815006395,0.00017281,37663.0,37654.0,0.10047189]
[1643815006592,0.00017281,37663.0,37659.0,0.041]
[1643815006793,0.27221276,37663.0,37659.0,0.041]
[1643815007092,0.47509836,37663.0,37659.0,0.041]
[1643815007297,0.27221276,37663.0,37659.0,0.041]
[1643815008593,0.28112471,37662.0,37659.0,0.041]
[1643815009246,0.33112471,37662.0,37659.0,0.041]
[1643815009449,0.33112471,37662.0,37641.0,0.6624679]
[1643815009450,0.9,37661.0,37641.0,0.6624679]
[1643815009646,0.8489,37661.0,37648.0,0.01924983]
[1643815009851,0.1,37660.0,37648.0,0.01924983]
[1643815010048,0.0489,37659.0,37648.0,0.01924983]